bitfinex/quotes_ETHUSD_20240922
["timestamp","ask_amount","ask_price","bid_price","bid_amount"]
[1726987972140,6.30389,2582.8,2582.3,3.87247]
[1726987972340,2.43061806,2582.8,2582.6,1.65011342]
[1726987972850,2.43061806,2582.8,2582.5,7.7444]
[1726987973033,7.74256,2583.2,2582.6,2.59730833]
[1726987973034,3.87126,2583.2,2582.6,2.59730833]
[1726987973236,3.87134,2583.1,2582.6,2.59730833]
[1726987973437,3.87134,2583.1,2582.6,6.46934833]
[1726987974064,1.65011342,2583.6,2582.4,1.65011342]
[1726987974273,3.87164,2582.9,2582.3,10.22071]
[1726987974435,3.87164,2582.9,2582.3,6.34829]
[1726987974636,3.87164,2582.9,2582.3,3.87239]
[1726987975449,2.4277,2582.8,2582.5,3.87214]
[1726987978751,2.4277,2582.8,2582.3,7.44886427]
[1726987979857,2.4277,2582.8,2582.4,3.87235]
[1726987981761,3.87194,2582.7,2582.1,9.31971]
[1726987981991,2.4277,2582.6,2582.1,8.16233043]
[1726987982347,2.4277,2582.6,2582.2,3.87257]
[1726987982632,2.4277,2582.6,2582.1,8.16233043]
[1726987983253,2.4277,2582.6,2582.3,7.74484]
[1726987983453,2.4277,2582.6,2582.3,3.87242]
[1726987985169,2.4277,2582.6,2582.3,4.381002]
[1726987985364,3.2326003,2582.8,2582.3,6.828002]
[1726987986194,6.29947,2582.8,2582.3,6.828002]
[1726987986391,3.2326003,2582.8,2582.3,6.828002]
[1726987987007,3.2326003,2582.8,2582.4,3.87234]
[1726987987204,3.2326003,2582.8,2582.3,6.828002]
[1726987988213,3.2326003,2582.8,2582.4,3.87233]
[1726987991010,3.2326003,2582.8,2582.5,3.87217]
[1726987991173,0.8049003,2583.0,2582.7,3.87191]
[1726987991498,0.8049003,2583.0,2582.8,3.87175]
[1726987993172,0.8049003,2583.0,2582.9,3.87161]
[1726987996007,0.8049003,2583.1,2582.9,3.87161]
[1726987996213,0.8049003,2583.1,2583.0,3.87146]
[1726987996599,0.8049003,2583.2,2583.0,3.87146]
[1726987997416,0.8049003,2583.2,2583.1,3.87131]
[1726987998129,3.2326003,2583.3,2583.1,3.87131]
[1726987998988,3.2326003,2583.3,2583.0,8.47100923]
[1726987999224,3.2326003,2583.3,2583.1,3.87131]
[1726988001089,3.2326003,2583.3,2583.0,8.47092923]
[1726988001504,3.2326003,2583.3,2583.1,3.87131]
[1726988003890,0.8049003,2583.2,2583.0,8.47091923]
[1726988004196,0.8049003,2583.2,2582.8,3.87166]
[1726988004405,0.8049003,2583.1,2582.8,3.87166]
[1726988004629,0.8049003,2583.1,2582.9,3.8716]
[1726988005166,0.8049003,2583.1,2582.8,7.74333]
[1726988005329,0.8049003,2583.1,2582.9,3.87158]
[1726988006137,0.8049003,2583.1,2582.8,3.87166]
[1726988006499,0.8049003,2583.1,2582.9,3.8716]
[1726988008237,0.8049003,2583.1,2583.0,3.87146]
[1726988008401,0.8049003,2583.2,2583.0,3.87146]
[1726988008604,0.8049003,2583.2,2583.0,5.52176891]
[1726988008831,0.8049003,2583.2,2583.0,6.6949978]
[1726988009450,0.8049003,2583.2,2583.0,10.5663878]
[1726988009662,0.8049003,2583.2,2583.0,10.5663778]
[1726988011052,0.8049003,2583.2,2583.0,6.6949978]
[1726988011260,0.8049003,2583.2,2583.0,10.5663778]
[1726988011556,0.8049003,2583.2,2583.0,6.6949978]
[1726988012359,0.8049003,2583.3,2583.0,6.6949978]
[1726988012703,0.8049003,2583.2,2583.0,6.6949978]
[1726988013041,1.20735045,2583.4,2583.0,6.6949978]
[1726988013042,0.8049003,2583.3,2583.0,6.6949978]
[1726988013246,0.8049003,2583.3,2583.0,5.52174891]
[1726988014151,0.8049003,2583.3,2583.0,3.87136]
[1726988014530,0.8049003,2583.2,2583.0,3.87136]
[1726988016926,0.8049003,2583.2,2582.9,2.3389]
[1726988017274,3.2133003,2583.1,2582.8,3.87166]
[1726988021978,3.2133003,2583.1,2582.9,3.8716]
[1726988022138,0.8049003,2583.2,2582.9,5.52199891]
[1726988022472,0.8049003,2583.2,2583.0,10.18621]
[1726988022638,0.8049003,2583.3,2583.0,10.18621]
[1726988023345,0.8049003,2583.3,2583.0,10.18622]
[1726988023551,0.8049003,2583.3,2583.1,3.8713]
[1726988025286,0.8049003,2583.3,2583.0,6.31484]
[1726988025573,0.8049003,2583.3,2583.1,1.65038891]
[1726988025786,1.20969404,2583.6,2583.4,3.87086]
[1726988026074,0.40479374,2583.6,2583.5,5.52109891]
[1726988026275,0.8049003,2583.7,2583.6,3.87056]
[1726988026576,0.8431664,2583.8,2583.6,3.87056]
[1726988026733,0.8431664,2583.8,2583.5,5.52109891]
[1726988026939,0.8049003,2583.7,2583.5,5.52109891]
[1726988027272,0.8431664,2583.8,2583.5,5.52109891]
[1726988027867,0.8431664,2583.8,2583.6,3.87056]
[1726988028044,0.8431664,2583.8,2583.5,5.52109891]
[1726988028045,0.8049003,2583.7,2583.5,3.87071]
[1726988028249,0.8049003,2583.7,2583.5,7.74134]
[1726988028970,0.8049003,2583.7,2583.5,3.87063]
[1726988029480,0.8049003,2583.7,2583.5,7.74126]
[1726988029976,0.8049003,2583.7,2583.5,7.74127]
[1726988031082,0.8431664,2583.8,2583.6,3.87056]
[1726988033290,0.8431664,2583.8,2583.5,5.03597589]
[1726988033591,0.8049003,2583.7,2583.5,3.87063]
[1726988034603,0.8049003,2583.7,2583.5,7.74126]
[1726988034963,0.8049003,2583.7,2583.5,3.87063]
[1726988037715,3.1798003,2583.6,2583.5,3.87063]
[1726988037996,2.3749,2583.6,2583.5,3.87063]
[1726988038895,3.1798003,2583.6,2583.5,3.87063]
[1726988039115,2.3749,2583.6,2583.5,3.87063]
[1726988039620,2.3749,2583.6,2583.3,3.87093]
[1726988039780,0.8049003,2583.5,2583.4,3.87086]
[1726988039981,3.1798003,2583.6,2583.4,3.87086]
[1726988040517,0.8049003,2583.5,2583.3,3.87093]
[1726988040821,0.8049003,2583.5,2583.3,3.0]
[1726988041293,3.1798003,2583.6,2583.4,3.87086]
[1726988042006,0.8049003,2583.6,2583.4,6.34026]
[1726988042528,0.8049003,2583.6,2583.4,3.87076]
[1726988046233,0.8049003,2583.5,2583.4,3.87076]
[1726988047542,1.20735045,2583.7,2583.4,3.87076]
[1726988047543,0.8049003,2583.6,2583.4,3.87076]
[1726988047753,0.8049003,2583.6,2583.4,5.191896]
[1726988048059,0.8049003,2583.6,2583.4,3.87076]
[1726988049558,0.8049003,2583.5,2583.4,3.87076]
[1726988051054,0.8049003,2583.5,2583.3,3.0]
[1726988052146,0.8049003,2583.5,2583.3,6.871]
[1726988055548,0.8049003,2583.5,2583.3,9.1835]
[1726988057444,0.8049003,2583.4,2583.3,9.1835]
[1726988057643,0.8049003,2583.6,2583.4,3.87086]
[1726988057838,0.8049003,2583.7,2583.5,3.87071]
[1726988058034,0.8049003,2583.7,2583.6,3.87056]
[1726988059794,1.24789789,2583.8,2583.7,6.18291]
[1726988060093,0.0382661,2583.8,2583.7,9.01142517]
[1726988064676,0.0382661,2583.8,2583.7,7.36103626]
[1726988064877,0.0382661,2583.8,2583.7,5.04853626]
[1726988065390,0.8431664,2583.8,2583.6,3.87048]
[1726988065596,0.8431664,2583.8,2583.6,3.87047]
[1726988066493,3.49265045,2583.7,2583.4,3.87078]
[1726988066730,0.80694176,2583.6,2583.4,7.74156]
[1726988068796,0.80694176,2583.6,2583.4,3.87078]
[1726988069014,0.80694176,2583.5,2583.4,3.87078]
[1726988074137,0.80694176,2583.5,2583.4,5.52116891]
[1726988074308,0.80694176,2583.6,2583.5,3.87071]
[1726988076604,0.80694176,2583.7,2583.5,3.87071]
[1726988077049,0.80694176,2583.7,2583.6,5.52094891]
[1726988077548,0.80694176,2583.7,2583.6,3.87056]
[1726988077732,1.24561655,2583.8,2583.6,3.87056]
[1726988077937,0.80750415,2583.7,2583.6,3.87056]
[1726988079757,0.80750415,2583.7,2583.6,4.42954554]
[1726988081613,0.84576706,2583.8,2583.7,3.87041]
[1726988082550,0.0382661,2583.8,2583.7,3.87041]
[1726988083339,0.0382661,2583.8,2583.7,6.16391]
[1726988085664,0.0382661,2583.8,2583.7,3.87041]
[1726988086544,0.84576706,2583.8,2583.7,3.87041]
[1726988087555,0.0382661,2583.8,2583.7,3.87041]
[1726988089193,0.84576706,2583.8,2583.7,3.87041]
[1726988090448,0.0382661,2583.8,2583.7,3.87041]
[1726988091082,0.84576706,2583.8,2583.7,3.87041]
[1726988093250,0.8455774,2583.8,2583.6,3.87048]
[1726988093765,0.8455774,2583.8,2583.6,7.74096]
[1726988094295,0.84558199,2583.8,2583.7,3.87041]
[1726988097601,0.84558199,2583.8,2583.6,3.87048]
[1726988097602,0.0382661,2583.8,2583.6,7.74091]
[1726988097816,0.84566257,2583.8,2583.6,3.87043]
[1726988097965,0.84566257,2583.8,2583.7,3.87041]
[1726988104518,0.84601761,2583.8,2583.7,3.87041]
[1726988104681,0.84603217,2583.8,2583.7,3.87041]
[1726988104882,0.0382661,2583.8,2583.7,3.87041]
[1726988105105,0.84603504,2583.8,2583.7,3.87041]
[1726988105483,0.84603215,2583.8,2583.7,3.87041]
[1726988106391,0.0382661,2583.8,2583.7,3.87041]
[1726988106582,1.24561655,2583.8,2583.7,3.87041]
[1726988106789,0.0382661,2583.8,2583.7,3.87041]
[1726988106994,1.24561655,2583.8,2583.7,3.87041]
[1726988107214,0.0382661,2583.8,2583.7,3.87041]
[1726988107417,1.24561655,2583.8,2583.7,3.87041]
[1726988107630,0.0382661,2583.8,2583.7,3.87041]
[1726988107825,0.0382661,2583.8,2583.7,4.95125954]
[1726988108098,0.0382661,2583.8,2583.7,10.272657]
[1726988114752,0.0382661,2583.8,2583.7,10.822657]
[1726988116743,0.0382661,2584.5,2584.4,9.18797]
[1726988116897,0.0382661,2584.5,2584.4,11.63311434]
[1726988126161,0.0382661,2584.5,2584.4,6.86937]
[1726988126323,0.0382661,2584.5,2584.4,3.86937]
[1726988129746,0.0382661,2584.5,2584.3,5.51989891]
[1726988129918,2.2941,2584.4,2584.3,8.51989891]
[1726988130859,0.0382661,2584.5,2584.3,8.51989891]
[1726988131023,0.0382661,2584.5,2584.3,12.38929891]
[1726988131225,0.0382661,2584.5,2584.3,4.65038891]
[1726988131567,0.0382661,2584.5,2584.3,1.65038891]
[1726988131860,0.0382661,2584.5,2584.3,5.51984891]
[1726988132427,0.0382661,2584.5,2584.3,1.65038891]
[1726988133719,0.0382661,2584.5,2584.3,5.51985891]
[1726988137784,0.0382661,2584.5,2584.3,5.51988891]
[1726988144667,2.4277,2584.4,2583.8,7.3676392]
[1726988144873,2.4277,2584.1,2583.7,3.87033]
[1726988145074,3.23555233,2584.1,2583.7,3.87033]
[1726988145387,3.23555233,2584.1,2583.7,7.74066]
[1726988145739,3.23555233,2584.1,2583.8,3.87025]
[1726988146077,3.23555233,2584.1,2583.7,3.87032]
[1726988147055,3.23555233,2584.1,2583.7,7.74064]
[1726988148946,2.4277,2584.1,2583.7,7.74064]
[1726988149160,2.4277,2584.1,2583.7,7.74065]
[1726988150056,2.4277,2584.0,2583.5,3.0]
[1726988150269,2.4277,2583.9,2583.5,6.87067]
[1726988150469,2.4277,2583.8,2583.5,6.87067]
[1726988151047,2.4277,2583.8,2583.5,3.87067]
[1726988152207,0.80785233,2584.0,2583.8,3.87024]
[1726988152413,3.23555233,2584.1,2583.9,1.65038891]
[1726988152695,3.23555233,2584.1,2583.8,3.87024]
[1726988152873,0.80785233,2584.0,2583.8,3.87024]
[1726988153856,0.80785233,2584.0,2583.7,1.65038891]
[1726988154372,0.80785233,2584.0,2583.6,3.87042]
[1726988155606,2.2726,2583.9,2583.5,3.87061]
[1726988155763,2.2726,2583.9,2583.6,3.87054]
[1726988160518,2.2726,2584.1,2583.8,3.87026]
[1726988161033,2.2726,2584.1,2583.8,7.74044]
[1726988161197,2.2726,2584.1,2583.8,3.87018]
[1726988165335,2.2726,2584.3,2583.9,5.52049891]
[1726988165818,2.2726,2584.3,2584.1,3.86981]
[1726988166318,2.2726,2584.3,2583.9,9.39046891]
[1726988166509,2.2726,2584.3,2584.0,3.86996]
[1726988168913,2.2726,2584.3,2583.9,5.52035891]
[1726988169118,3.08045233,2584.3,2583.9,9.39037891]
[1726988169515,3.08045233,2584.3,2583.9,7.73999]
[1726988170252,3.08045233,2584.3,2583.8,6.87026]
[1726988170253,2.2726,2584.1,2583.8,6.87026]
[1726988170406,2.2726,2584.1,2583.7,5.52069891]
[1726988170407,3.08045233,2584.1,2583.7,3.87031]
[1726988171024,3.08045233,2584.1,2583.8,3.87025]
[1726988175314,2.2726,2584.1,2583.8,4.80934489]
[1726988175842,3.08045233,2584.1,2583.8,4.80934489]
[1726988176044,2.2726,2584.1,2583.8,4.80934489]
[1726988176340,2.2726,2584.1,2583.8,4.80927489]
[1726988176729,3.08045233,2584.1,2583.8,4.80927489]
[1726988177418,3.08045233,2584.1,2583.8,8.67946489]
[1726988178092,2.2726,2584.1,2583.8,8.67946489]
[1726988178256,3.08045233,2584.1,2583.8,4.80927489]
[1726988178953,3.08045233,2584.1,2583.9,3.87003]
[1726988178954,2.2726,2584.1,2583.9,3.87003]
[1726988179313,3.08045233,2584.1,2583.9,4.72913754]
[1726988179540,0.80785233,2584.2,2583.9,4.72913754]
[1726988179850,0.80785233,2584.2,2584.0,3.86995]
[1726988184364,0.80785233,2584.1,2584.0,3.86995]
[1726988185476,3.16825233,2584.1,2584.0,3.86995]
[1726988185775,3.16767007,2584.1,2584.0,3.86995]
[1726988185960,3.16767736,2584.1,2584.0,3.86995]
[1726988186364,2.3604,2584.1,2584.0,3.86995]
[1726988186574,3.16779437,2584.1,2584.0,3.86995]
[1726988187077,2.3604,2584.1,2584.0,3.86995]
[1726988187460,3.56775045,2584.1,2584.0,3.86995]
[1726988189037,3.56775045,2584.1,2583.9,3.8701]
[1726988189233,0.80764029,2584.0,2583.9,3.8701]
[1726988190378,3.56775045,2584.1,2583.9,3.8701]
[1726988190744,0.80801662,2584.0,2583.9,3.8701]
[1726988190944,3.56775045,2584.1,2583.9,3.8701]
[1726988191483,0.80801446,2584.0,2583.9,3.8701]
[1726988191685,3.56775045,2584.1,2583.9,3.8701]
[1726988191850,3.56775045,2584.1,2583.8,7.74032]
[1726988192055,3.56775045,2584.1,2583.8,10.74032]
[1726988192056,0.8079905,2583.9,2583.8,10.74032]
[1726988192480,1.20735045,2584.0,2583.8,10.74032]
[1726988192774,1.20735045,2584.0,2583.9,3.87011]
[1726988193489,1.21197962,2584.0,2583.8,6.87022]
[1726988193781,1.21197962,2583.9,2583.8,6.87022]
[1726988194166,0.80798621,2583.9,2583.8,6.87022]
[1726988194351,1.21197962,2583.9,2583.8,6.87022]
[1726988194552,0.80800782,2583.9,2583.8,6.87022]
[1726988195478,0.80800782,2583.9,2583.8,8.10932089]
[1726988197411,1.21197962,2584.0,2583.8,6.87022]
[1726988197768,0.80806015,2583.9,2583.8,6.87022]
[1726988197970,0.80804577,2583.9,2583.8,6.87022]
[1726988198191,0.80807402,2583.9,2583.8,6.87022]
[1726988198411,0.80809665,2583.9,2583.8,6.87022]
[1726988199111,1.21197962,2584.0,2583.8,6.87022]
[1726988199269,0.80812278,2583.9,2583.8,6.87022]
[1726988199474,0.80811307,2583.9,2583.8,6.87022]
[1726988199771,0.80812931,2583.9,2583.8,6.87022]
[1726988200081,1.21197962,2583.9,2583.8,6.87022]
[1726988200295,1.21197962,2584.0,2583.8,6.87022]
[1726988200632,0.80814657,2583.9,2583.8,6.87022]
[1726988200789,1.21197962,2584.0,2583.8,6.87022]
[1726988200976,0.80817424,2583.9,2583.8,6.87022]
[1726988201175,1.21197962,2584.0,2583.8,8.10932089]
[1726988201408,0.80819299,2583.9,2583.8,6.87022]
[1726988201613,1.21197962,2583.9,2583.8,6.87022]
[1726988201908,1.21197962,2584.0,2583.8,6.87022]
[1726988202411,1.21197962,2583.9,2583.8,6.87022]
[1726988202608,1.21197962,2584.0,2583.8,6.87022]
[1726988202815,1.21197962,2583.9,2583.8,6.87022]
[1726988202976,1.21197962,2584.0,2583.8,6.87022]
[1726988203173,1.21197962,2583.9,2583.8,6.87022]
[1726988203398,1.21197962,2584.0,2583.8,6.87022]
[1726988203706,1.21197962,2583.9,2583.8,6.87022]
[1726988214135,3.97020061,2584.1,2583.9,3.87011]
[1726988215496,3.97020061,2584.1,2584.0,3.86996]
[1726988216743,1.60980061,2584.1,2584.0,4.943978]
[1726988216944,1.21346941,2584.2,2584.1,9.25801]
[1726988217247,0.84732747,2584.5,2584.3,9.25771]
[1726988217397,0.0382661,2584.5,2584.4,7.59355443]
[1726988217598,0.0382661,2584.5,2584.4,7.67092786]
[1726988218044,0.0382661,2584.5,2584.4,7.59355443]
[1726988218643,0.0382661,2584.5,2584.3,3.86942]
[1726988218826,0.0382661,2584.5,2584.4,3.86937]
[1726988218827,0.84732747,2584.5,2584.4,3.86937]
[1726988219143,0.84633266,2584.5,2584.4,3.86937]
[1726988219304,0.84620624,2584.5,2584.4,3.86937]
[1726988220637,0.0382661,2584.5,2584.4,7.90795891]
[1726988220954,0.0382661,2584.5,2584.4,12.0934353]
[1726988222776,0.0382661,2584.5,2584.4,8.05484639]
[1726988222916,0.0382661,2584.5,2584.4,6.86937]
[1726988232756,2.4286661,2584.5,2584.4,3.86937]
[1726988235443,0.0382661,2584.5,2584.4,5.51975891]
[1726988240572,0.0382661,2584.5,2584.4,8.59713824]
[1726988240777,0.0382661,2584.5,2584.4,8.51975891]
[1726988241678,0.0382661,2584.5,2584.4,5.51975891]
[1726988241882,0.0382661,2584.5,2584.4,3.86937]
[1726988254488,0.0382661,2584.5,2584.1,6.86971]
[1726988254686,0.84620624,2584.5,2584.3,3.86942]
[1726988254870,0.84620624,2584.5,2584.4,3.86937]
[1726988256151,0.0382661,2584.5,2584.4,3.86937]
[1726988256652,0.84620624,2584.5,2584.4,3.86937]
[1726988256859,0.0382661,2584.5,2584.4,3.86937]
[1726988257482,0.84620624,2584.5,2584.4,3.86937]
[1726988257707,0.84620624,2584.5,2584.4,6.4587008]
[1726988257853,0.0382661,2584.5,2584.4,8.7341008]
[1726988260362,0.84620624,2584.5,2584.4,8.7341008]
[1726988260576,0.0382661,2584.5,2584.4,8.7341008]
[1726988260751,0.84620624,2584.5,2584.4,8.7341008]
[1726988261085,0.0382661,2584.5,2584.4,8.7341008]
[1726988261651,0.84620624,2584.5,2584.4,8.7341008]
[1726988262052,0.0382661,2584.5,2584.4,8.7341008]
[1726988262375,0.84620624,2584.5,2584.4,8.7341008]
[1726988263661,0.84620624,2584.5,2584.4,5.51975891]
[1726988264269,0.84620624,2584.5,2584.4,3.86937]
[1726988265801,0.0382661,2584.5,2584.4,3.86937]
[1726988266605,1.25173551,2584.5,2584.4,3.86937]
[1726988267196,1.25173551,2584.5,2584.3,3.86943]
[1726988267393,3.47076941,2584.4,2583.9,4.65038891]
[1726988267598,0.8083599,2584.2,2584.1,3.86981]
[1726988267906,1.21346941,2584.3,2584.2,3.0]
[1726988271805,1.21346941,2584.3,2584.2,3.86966]
[1726988272005,1.21346941,2584.3,2584.2,6.86966]
[1726988272423,1.21346941,2584.3,2584.2,6.86850317]
[1726988273187,3.47076941,2584.4,2584.2,6.86850317]
[1726988273388,1.21346941,2584.3,2584.2,6.86850317]
[1726988274596,2.05977132,2584.5,2584.3,3.86951]
[1726988274778,0.84630191,2584.5,2584.4,6.86937]
[1726988276399,0.0382661,2584.5,2584.4,6.86937]
[1726988276610,0.84630191,2584.5,2584.4,6.86937]
[1726988276819,0.0382661,2584.5,2584.4,7.42869422]
[1726988277185,0.84630191,2584.5,2584.4,7.42869422]
[1726988277887,0.0382661,2584.5,2584.4,7.42869422]
[1726988278794,0.84630191,2584.5,2584.4,7.42869422]
[1726988279412,0.0382661,2584.5,2584.4,7.42869422]
[1726988280437,0.84630191,2584.5,2584.4,7.42869422]
[1726988280727,0.0382661,2584.5,2584.4,7.42869422]
[1726988290108,0.0382661,2584.5,2584.4,7.50607202]
[1726988294446,0.0382661,2584.5,2584.4,9.78497202]
[1726988294647,0.0382661,2584.5,2584.4,9.70759422]
[1726988315470,0.0382661,2584.5,2584.4,10.31470807]
[1726988317241,0.0382661,2584.5,2584.4,9.70759422]
[1726988317559,0.0382661,2584.5,2584.4,10.31486086]
[1726988322380,0.0382661,2584.5,2584.4,10.31539077]
[1726988323876,0.0382661,2584.5,2584.4,9.70759422]
[1726988324169,0.0382661,2584.5,2584.4,10.31541998]
[1726988325095,0.0382661,2584.5,2584.4,9.70759422]
[1726988325260,0.0382661,2584.5,2584.4,9.14827]
[1726988332307,2.3956661,2584.5,2584.4,6.86937]
[1726988333664,2.3956661,2584.5,2584.4,8.51975891]
[1726988343800,2.3956661,2584.5,2584.4,3.86937]
[1726988344002,3.60913551,2584.5,2584.4,3.86937]
[1726988344213,4.13102912,2584.5,2584.4,3.86937]
[1726988345281,2.91755971,2584.5,2584.4,3.86937]
[1726988345485,4.13102912,2584.5,2584.4,3.86937]
[1726988345711,2.91755971,2584.5,2584.4,3.86937]
[1726988346387,3.72563984,2584.5,2584.4,3.86937]
[1726988349089,0.0382661,2584.5,2584.4,10.92965891]
[1726988350504,0.0382661,2584.5,2584.4,9.27927]
[1726988350703,0.0382661,2584.5,2584.4,10.92965891]
[1726988351334,0.0382661,2584.5,2584.4,8.51975891]
[1726988354596,0.0382661,2584.5,2584.4,6.86937]
[1726988354821,2.4547661,2584.5,2584.4,6.86937]
[1726988362157,0.0382661,2584.5,2584.4,6.86937]
[1726988371670,2.3446661,2584.5,2584.4,6.86937]
[1726988373284,0.0382661,2584.5,2584.4,6.86937]
[1726988375096,3.15274623,2584.5,2584.4,3.86937]
[1726988375254,3.15326194,2584.5,2584.4,3.86937]
[1726988375449,3.58991318,2584.5,2584.4,3.86937]
[1726988375653,3.99480865,2584.5,2584.4,3.86937]
[1726988375845,3.99480865,2584.5,2584.4,4.24935952]
[1726988376177,3.99480865,2584.5,2584.4,3.86937]
[1726988377146,3.99480865,2584.5,2584.4,4.24937775]
[1726988377549,3.99480865,2584.5,2584.4,0.38000775]
[1726988379295,3.99480865,2584.5,2584.3,3.86951]
[1726988379452,0.80837857,2584.4,2584.3,3.86951]
[1726988392393,3.15304467,2584.5,2584.3,3.86951]
[1726988392590,0.80837857,2584.4,2584.3,3.86951]
[1726988395805,3.75067614,2584.5,2584.3,3.86951]
[1726988396019,0.80837857,2584.4,2584.3,3.86951]
[1726988396311,3.19134467,2584.5,2584.1,6.8697]
[1726988396475,3.19134467,2584.5,2584.1,5.3529]
[1726988396673,3.19134467,2584.5,2584.3,3.86943]
[1726988397412,0.80837857,2584.4,2584.3,3.86943]
[1726988400318,0.80006857,2584.4,2584.3,3.86943]
[1726988401302,3.59643551,2584.5,2584.3,3.86943]
[1726988401704,3.59643551,2584.5,2584.2,3.86966]
[1726988402006,3.59643551,2584.5,2584.2,7.73916]
[1726988402199,3.59643551,2584.5,2584.2,3.86958]
[1726988402537,4.31914485,2584.5,2584.2,3.86958]
[1726988403730,4.31914485,2584.5,2584.2,7.73917]
[1726988404225,4.31914485,2584.5,2584.2,3.86958]
[1726988404896,2.2924,2584.4,2584.2,3.86958]
[1726988405531,2.2924,2584.4,2584.2,7.73916]
[1726988405740,2.2924,2584.4,2584.3,3.86951]
[1726988406607,0.0382661,2584.5,2584.4,3.86937]
[1726988407893,0.0382661,2584.5,2584.3,3.86951]
[1726988408235,1.25173551,2584.5,2584.3,7.73902]
[1726988408595,0.0382661,2584.5,2584.4,3.86937]
[1726988409009,0.0382661,2584.5,2584.3,3.86948]
[1726988409228,1.76712912,2584.5,2584.3,3.858066]
[1726988409429,2.2924,2584.4,2584.3,3.858066]
[1726988411764,2.2924,2584.4,2584.2,3.86964]
[1726988411916,0.80815692,2584.3,2584.2,3.86964]
[1726988412499,0.80815692,2584.4,2584.3,3.86951]
[1726988416956,0.80876689,2584.4,2584.3,3.86951]
[1726988418746,0.80908749,2584.4,2584.3,3.86951]
[1726988418943,1.25173551,2584.5,2584.3,3.86951]
[1726988419359,1.21346941,2584.4,2584.3,3.86951]
[1726988421865,0.80929324,2584.4,2584.3,6.17711]
[1726988422264,0.84760859,2584.5,2584.4,3.86937]
[1726988422465,0.0382661,2584.5,2584.4,3.86937]
[1726988422795,0.84756712,2584.5,2584.4,3.86937]
[1726988423086,0.84756631,2584.5,2584.4,3.86937]
[1726988423454,0.0382661,2584.5,2584.4,3.86937]
[1726988423786,0.8474945,2584.5,2584.4,3.86937]
[1726988423987,0.84749678,2584.5,2584.4,3.86937]
[1726988425066,0.84749678,2584.5,2584.4,6.6894458]
[1726988425785,0.0382661,2584.5,2584.4,11.9970458]
[1726988437836,0.0382661,2584.5,2584.4,10.34665689]
[1726988437988,0.0382661,2584.5,2584.4,10.82735891]
[1726988438383,0.0382661,2584.5,2584.4,8.51975891]
[1726988441081,0.0382661,2584.5,2584.4,10.79795891]
[1726988453103,0.0382661,2584.5,2584.4,11.34795891]
[1726988457444,0.0382661,2585.3,2585.2,3.86817]
[1726988457617,0.0382661,2585.3,2585.2,5.51855891]
[1726988457939,0.0382661,2585.3,2585.2,5.59591225]
[1726988458642,0.0382661,2585.3,2585.2,5.51855891]
[1726988461412,0.0382661,2585.3,2585.2,9.6902448]
[1726988464056,0.0382661,2585.3,2585.2,12.0202448]
[1726988465823,0.0382661,2585.3,2585.2,12.5702448]
[1726988470873,0.0382661,2586.1,2586.0,9.19697]
[1726988471022,0.0382661,2586.1,2586.0,9.82348654]
[1726988477169,0.0382661,2586.1,2586.0,7.49348654]
[1726988477370,0.0382661,2586.1,2586.0,9.14387545]
[1726988482499,0.0382661,2586.1,2586.0,11.56397545]
[1726988485052,0.0382661,2586.1,2586.0,7.49348654]
[1726988485204,0.0382661,2586.1,2586.0,8.51735891]
[1726988488204,2.4723661,2586.1,2586.0,6.86697]
[1726988489641,0.0382661,2586.1,2586.0,6.86697]
[1726988489841,0.0382661,2586.1,2586.0,9.28707]
[1726988491852,0.0382661,2586.1,2586.0,6.86697]
[1726988497490,2.4966661,2586.1,2586.0,3.0]
[1726988497986,2.4966661,2586.1,2585.9,3.86702]
[1726988498589,2.4966661,2586.1,2586.0,3.86697]
[1726988498760,2.4966661,2586.1,2585.9,3.86702]
[1726988498956,2.74633271,2586.1,2585.9,3.86702]
[1726988500974,2.4966661,2586.1,2585.9,7.73406]
[1726988501446,2.4966661,2586.1,2585.9,3.86702]
[1726988502165,2.4966661,2586.1,2585.9,7.73406]
[1726988503200,2.4966661,2586.1,2585.9,3.86702]
[1726988503483,2.4966661,2586.1,2585.9,7.73402]
[1726988503644,2.4966661,2586.1,2585.9,3.867]
[1726988503845,2.4966661,2586.1,2585.9,7.73403]
[1726988505746,2.4966661,2586.1,2585.9,3.867]
[1726988506486,2.4966661,2586.1,2585.9,7.73404]
[1726988507356,2.4966661,2586.1,2585.9,3.867]
[1726988507559,2.4966661,2586.1,2586.0,5.51735891]
[1726988507560,0.0382661,2586.1,2586.0,5.51735891]
[1726988520092,0.0382661,2586.1,2586.0,8.51735891]
[1726988536259,0.0382661,2586.1,2586.0,10.90605891]
[1726988559889,0.0382661,2586.1,2586.0,8.51735891]
[1726988560107,0.0382661,2586.1,2586.0,9.76382245]
[1726988563808,0.0382661,2586.1,2586.0,12.16822245]
[1726988564615,0.0382661,2586.1,2586.0,10.51783354]
[1726988564921,0.0382661,2586.1,2586.0,12.16822245]
[1726988566911,0.0382661,2586.1,2586.0,6.86697]
[1726988567416,2.4976661,2586.1,2586.0,3.86697]
[1726988567620,3.30689678,2586.1,2586.0,3.86697]
[1726988567919,2.4976661,2586.1,2586.0,3.86697]
[1726988568118,3.30689678,2586.1,2586.0,3.86697]
[1726988568500,2.4976661,2586.1,2586.0,6.86697]
[1726988576585,0.0382661,2586.1,2586.0,6.86697]
[1726988581967,2.3403661,2586.1,2585.7,3.0]
[1726988582165,2.3021,2585.6,2584.5,0.06736285]
[1726988582390,2.3021,2585.2,2584.4,1.65038891]
[1726988582588,3.10929793,2585.2,2584.8,1.65038891]
[1726988583250,3.10929793,2585.2,2584.8,5.51914891]
[1726988583464,3.10929793,2585.2,2584.8,1.65038891]
[1726988583687,0.43200948,2585.1,2584.8,1.65038891]
[1726988583893,1.23920741,2585.1,2584.8,1.65038891]
[1726988584272,0.43200948,2585.1,2584.8,1.65038891]
[1726988584784,0.43200948,2585.1,2584.8,5.51912891]
[1726988584989,2.3021,2585.2,2584.8,1.65038891]
[1726988586460,2.3021,2585.2,2584.8,5.51913891]
[1726988586700,2.3021,2585.2,2584.8,1.65038891]
[1726988589204,2.3021,2585.2,2584.8,5.51912891]
[1726988589368,2.3021,2585.2,2584.8,1.65038891]
[1726988589568,2.919112,2585.2,2584.8,1.65038891]
[1726988590865,2.919112,2585.2,2584.8,5.51912891]
[1726988591298,2.919112,2585.2,2584.8,1.65038891]
[1726988599221,2.3021,2585.2,2584.8,1.65038891]
[1726988601863,2.3021,2585.2,2584.7,3.8688]